bitfinex-derivatives/quotes_BTCF0:USTF0_20250207
["timestamp","ask_amount","ask_price","bid_price","bid_amount"]
[1738971745777,0.004,96411.0,96410.0,0.2084165]
[1738971746370,0.0725,96427.0,96410.0,0.04313314]
[1738971746570,0.0725,96427.0,96422.0,0.2073895]
[1738971748683,0.0725,96427.0,96422.0,0.2083895]
[1738971750077,0.0725,96427.0,96422.0,0.2073895]
[1738971755487,0.0725,96427.0,96423.0,0.3608]
[1738971755686,0.0725,96427.0,96424.0,0.01285864]
[1738971755988,0.0725,96427.0,96425.0,0.02906311]
[1738971756183,0.0725,96427.0,96426.0,0.02906311]
[1738971757485,0.0725,96427.0,96426.0,0.02910832]
[1738971757884,0.0725,96427.0,96426.0,0.03010832]
[1738971758489,0.0725,96427.0,96426.0,0.03110832]
[1738971761590,0.0725,96427.0,96426.0,0.01490385]
[1738971763590,0.0026305,96427.0,96426.0,0.01490385]
[1738971763992,0.0026305,96427.0,96426.0,0.002]
[1738971764193,0.0026305,96427.0,96426.0,0.01487776]
[1738971764692,0.0026305,96427.0,96426.0,0.002]
[1738971765681,0.0026305,96427.0,96426.0,0.01489009]
[1738971768287,0.00155628,96428.0,96426.0,0.01489009]
[1738971768494,0.00155628,96428.0,96427.0,0.01289009]
[1738971769887,0.00155628,96428.0,96427.0,0.01390864]
[1738971770089,0.00155628,96428.0,96427.0,0.01490864]
[1738971771889,0.00155628,96428.0,96427.0,0.002]
[1738971774381,0.00155628,96428.0,96427.0,0.01820407]
[1738971774582,0.00155628,96428.0,96427.0,0.31725905]
[1738971775795,0.08134216,96440.0,96435.0,0.2073612]
[1738971775995,0.43632001,96442.0,96435.0,0.2073612]
[1738971776186,0.4358,96442.0,96435.0,0.2073612]
[1738971776388,0.4358,96442.0,96427.0,0.30105498]
[1738971776689,0.207364,96435.0,96427.0,0.30105498]
[1738971776995,0.207364,96435.0,96427.0,0.30005498]
[1738971777791,0.207364,96435.0,96427.0,0.29905498]
[1738971778387,0.207364,96435.0,96421.0,0.5691127]
[1738971778388,0.207364,96435.0,96430.0,0.36932281]
[1738971779487,0.207364,96435.0,96430.0,0.37032281]
[1738971780389,0.207364,96435.0,96430.0,0.37132281]
[1738971781798,0.08134216,96437.0,96430.0,0.37132281]
[1738971782484,0.08134216,96437.0,96430.0,0.002]
[1738971783185,0.15179626,96439.0,96430.0,0.001]
[1738971783394,0.15179626,96439.0,96430.0,0.002]
[1738971784795,0.15179626,96439.0,96430.0,0.001]
[1738971785291,0.16268432,96440.0,96430.0,0.002]
[1738971786393,0.16268432,96440.0,96437.0,0.24649142]
[1738971786590,0.1125,96441.0,96437.0,0.24649142]
[1738971786995,0.07496,96440.0,96437.0,0.24649142]
[1738971788093,0.3608,96442.0,96437.0,0.24649142]
[1738971788299,0.07496,96441.0,96437.0,0.24849142]
[1738971789906,0.07496,96441.0,96437.0,0.002]
[1738971790090,0.07496,96441.0,96437.0,0.001]
[1738971790293,0.07496,96441.0,96437.0,0.002]
[1738971791394,0.07496,96441.0,96437.0,0.001]
[1738971791599,0.07496,96441.0,96437.0,0.002]
[1738971792208,0.07496,96445.0,96437.0,0.002]
[1738971792507,0.07496,96445.0,96440.0,0.207351]
[1738971793305,0.07496,96453.0,96447.0,0.2073356]
[1738971793503,0.07496,96453.0,96448.0,0.1114]
[1738971794508,0.01000007,96453.0,96448.0,0.1114]
[1738971795202,0.01000007,96453.0,96448.0,0.1124]
[1738971795404,0.00155582,96455.0,96448.0,0.1124]
[1738971795599,0.00155582,96455.0,96448.0,0.1134]
[1738971796513,0.00155582,96455.0,96448.0,0.1124]
[1738971796903,0.00155582,96455.0,96448.0,0.1134]
[1738971797103,0.00155582,96455.0,96449.0,0.60304527]
[1738971797308,0.00155582,96455.0,96451.0,0.3608]
[1738971797501,0.3608,96463.0,96456.0,0.2073158]
[1738971798312,0.3608,96463.0,96457.0,0.2073141]
[1738971798605,0.2072897,96469.0,96457.0,0.2073141]
[1738971798606,0.01060905,96467.0,96457.0,0.2073141]
[1738971798811,0.2072897,96469.0,96457.0,0.2073141]
[1738971799113,0.3608,96466.0,96457.0,0.2073141]
[1738971800003,0.3608,96466.0,96457.0,0.001]
[1738971800204,0.3608,96466.0,96459.0,0.2073108]
[1738971801012,0.3608,96466.0,96465.0,0.18446718]
[1738971802406,0.3608,96466.0,96465.0,0.18546718]
[1738971803507,0.3608,96466.0,96465.0,0.18646718]
[1738971803905,0.3608,96466.0,96465.0,0.002]
[1738971804909,0.3608,96466.0,96465.0,0.0813]
[1738971805314,0.3608,96466.0,96465.0,0.1207]
[1738971805614,0.207292,96468.0,96465.0,0.1207]
[1738971805913,0.01049995,96470.0,96465.0,0.1207]
[1738971806218,0.2072861,96471.0,96465.0,0.1207]
[1738971806515,0.3608,96474.0,96465.0,0.1207]
[1738971807214,0.37127159,96474.0,96465.0,0.1207]
[1738971807413,0.37127159,96474.0,96465.0,0.1197]
[1738971807612,0.37127159,96474.0,96465.0,0.1207]
[1738971807811,0.3608,96474.0,96468.0,0.2072909]
[1738971808218,0.3608,96474.0,96465.0,0.1207]
[1738971809108,0.3608,96474.0,96466.0,0.2072961]
[1738971809312,0.3608,96474.0,96468.0,0.001]
[1738971811311,0.3608,96474.0,96466.0,0.39176328]
[1738971811529,0.3608,96474.0,96466.0,0.18446718]
[1738971811820,0.3608,96474.0,96470.0,0.207287]
[1738971812718,0.52348432,96480.0,96470.0,0.207287]
[1738971814218,0.53369415,96480.0,96470.0,0.209287]
[1738971814610,0.53369415,96480.0,96470.0,0.002]
[1738971818821,0.53369415,96480.0,96470.0,0.18646718]
[1738971822419,0.53369415,96480.0,96474.0,0.18446718]
[1738971822625,0.37100983,96480.0,96474.0,0.18446718]
[1738971822922,0.01020983,96480.0,96474.0,0.18446718]
[1738971823125,0.64354231,96482.0,96474.0,0.18446718]
[1738971823316,0.57646743,96482.0,96474.0,0.18446718]
[1738971823719,0.57646743,96482.0,96474.0,0.18546718]
[1738971824122,0.58710413,96482.0,96474.0,0.18646718]
[1738971824626,0.58710413,96482.0,96474.0,0.18546718]
[1738971824827,0.58710413,96482.0,96474.0,0.18646718]
[1738971826118,0.58710413,96482.0,96474.0,0.18546718]
[1738971826323,0.58710413,96482.0,96474.0,0.18646718]
[1738971826926,0.58710413,96482.0,96479.0,0.18446718]
[1738971827333,0.37984183,96482.0,96479.0,0.18446718]
[1738971828030,0.37984183,96482.0,96479.0,0.18546718]
[1738971828329,0.37984183,96482.0,96479.0,0.18646718]
[1738971828828,0.3714367,96482.0,96479.0,0.18646718]
[1738971829033,0.3608,96482.0,96481.0,0.2072639]
[1738971829233,0.00155535,96487.0,96479.0,0.18646718]
[1738971830034,0.2072553,96485.0,96479.0,0.18646718]
[1738971830228,0.01178244,96487.0,96481.0,0.001]
[1738971830428,0.20880685,96487.0,96481.0,0.001]
[1738971831132,0.20880685,96487.0,96479.0,0.18646718]
[1738971831332,0.20880685,96487.0,96479.0,0.002]
[1738971831535,0.20880685,96487.0,96481.0,0.001]
[1738971831834,0.20880685,96487.0,96481.0,0.002]
[1738971832835,0.2072533,96486.0,96481.0,0.002]
[1738971833935,0.2072557,96485.0,96481.0,0.002]
[1738971834137,0.3608,96482.0,96481.0,0.002]
[1738971834935,0.2072609,96483.0,96481.0,0.002]
[1738971835135,0.3608,96482.0,96481.0,0.001]
[1738971835336,0.3608,96482.0,96481.0,0.002]
[1738971836031,0.5680617,96482.0,96481.0,0.002]
[1738971837833,0.2072617,96482.0,96481.0,0.002]
[1738971843042,0.2072617,96482.0,96481.0,0.30998924]
[1738971844831,0.20880705,96487.0,96481.0,0.51725304]
[1738971845047,0.00155535,96487.0,96481.0,0.51725304]
[1738971845437,0.2072564,96485.0,96481.0,0.51725304]
[1738971845836,0.2072596,96483.0,96481.0,0.51725304]
[1738971846739,0.2072596,96483.0,96481.0,0.2082638]
[1738971846945,0.2072596,96483.0,96481.0,0.2092638]
[1738971847145,0.2072596,96483.0,96481.0,0.2082638]
[1738971847345,0.2072596,96483.0,96481.0,0.2092638]
[1738971847537,0.2072596,96483.0,96482.0,0.01612759]
[1738971849752,0.2072596,96483.0,96482.0,0.01812759]
[1738971850642,0.00155535,96487.0,96482.0,0.01812759]
[1738971850847,0.20880665,96487.0,96483.0,0.01612759]
[1738971851050,0.2072548,96486.0,96484.0,0.01619046]
[1738971851350,0.2072548,96486.0,96482.0,0.30998924]
[1738971851550,0.2072548,96486.0,96483.0,0.01619104]
[1738971851753,0.2072548,96486.0,96484.0,0.01619104]
[1738971852050,0.2072548,96486.0,96485.0,0.01619517]
[1738971852544,0.2072548,96486.0,96482.0,0.30998924]
[1738971852748,0.2072548,96486.0,96483.0,0.0161952]
[1738971852950,0.2072548,96486.0,96484.0,0.0161952]
[1738971853150,0.2072548,96486.0,96485.0,0.01619515]
[1738971853348,0.2072548,96486.0,96485.0,0.001]
[1738971853548,0.2072548,96486.0,96485.0,0.01719518]
[1738971853737,0.2072548,96486.0,96485.0,0.01619518]
[1738971854555,0.2072548,96486.0,96485.0,0.01719561]
[1738971855146,0.07923926,96493.0,96485.0,0.01719561]
[1738971855343,0.07871925,96493.0,96486.0,0.01619561]
[1738971855548,0.07871925,96493.0,96485.0,0.32151087]
[1738971855751,0.2072461,96490.0,96485.0,0.32151087]
[1738971856347,0.07871925,96493.0,96485.0,0.32151087]
[1738971856544,0.07871925,96493.0,96486.0,0.001]
[1738971856944,0.07871925,96493.0,96485.0,0.68123087]
[1738971857147,0.07871925,96493.0,96485.0,0.88956577]
[1738971857350,0.07871925,96493.0,96486.0,0.0161951]
[1738971857544,0.06807941,96493.0,96485.0,0.68223087]
[1738971857846,0.06807941,96493.0,96486.0,0.22444749]
[1738971858144,0.06807941,96493.0,96486.0,0.2082524]
[1738971858348,0.06807941,96493.0,96487.0,0.01619504]
[1738971858551,0.06807941,96493.0,96486.0,0.2082524]
[1738971858746,0.06807941,96493.0,96487.0,0.01619503]
[1738971858940,0.06807941,96493.0,96486.0,0.2092524]
[1738971859140,0.06807941,96493.0,96487.0,0.01619505]
[1738971859351,0.06807941,96493.0,96486.0,0.2082524]
[1738971859752,0.06807941,96493.0,96486.0,0.2072524]
[1738971860057,0.06807941,96493.0,96487.0,0.002]
[1738971860446,0.08134216,96495.0,96490.0,0.30799366]
[1738971860648,0.21749386,96496.0,96490.0,0.30799366]
[1738971862453,0.21749386,96496.0,96490.0,0.30899366]
[1738971863260,0.07552,96495.0,96490.0,0.30999366]
[1738971864351,0.07552,96495.0,96490.0,0.002]
[1738971865460,0.07544,96495.0,96490.0,0.002]
[1738971867058,0.2072407,96492.0,96490.0,0.002]
[1738971867861,0.3608,96491.0,96465.0,0.43252042]
[1738971868052,0.3608,96491.0,96465.0,0.38969721]
[1738971868053,0.2072956,96467.0,96465.0,0.38969721]
[1738971871579,0.2072964,96466.0,96462.0,0.00092]
[1738971871861,0.2072964,96466.0,96459.0,0.24640287]
[1738971872757,0.2072993,96465.0,96459.0,0.24640287]
[1738971873566,0.2073015,96464.0,96459.0,0.24640287]
[1738971874860,0.2073015,96464.0,96456.0,0.20747285]
[1738971875665,0.2073036,96463.0,96456.0,0.20747285]
[1738971876465,0.001,96464.0,96457.0,0.2073147]
[1738971876660,0.2073147,96458.0,96456.0,0.00015545]
[1738971877362,0.2073154,96457.0,96456.0,0.00015545]
[1738971881168,0.2083154,96457.0,96456.0,0.00015545]
[1738971884068,0.08134216,96466.0,96456.0,0.00015545]
[1738971885059,0.2073154,96457.0,96456.0,0.00015545]
[1738971888265,0.2073066,96462.0,96459.0,0.20731]
[1738971888569,0.2073089,96460.0,96459.0,0.20731]
[1738971892470,0.2073089,96460.0,96459.0,0.56811]
[1738971896376,0.08134216,96466.0,96459.0,0.3608]
[1738971897070,0.28864016,96466.0,96459.0,0.3608]
[1738971897276,0.28864016,96466.0,96462.0,0.2073031]
[1738971897580,0.207298,96466.0,96462.0,0.2073031]
[1738971899980,0.2072864,96471.0,96466.0,0.2072953]
[1738971900177,0.20743158,96476.0,96464.0,0.3608]
[1738971900482,0.00015498,96476.0,96475.0,0.3608]
[1738971902573,0.20742958,96476.0,96475.0,0.3618]
[1738971903172,0.20742958,96476.0,96475.0,0.002]
[1738971905989,0.00015498,96476.0,96475.0,0.5700767]
[1738971910382,0.00015498,96476.0,96475.0,0.3628]
[1738971914196,0.00015498,96476.0,96475.0,0.5700767]
[1738971916299,0.00015498,96476.0,96475.0,0.3628]
[1738971917589,0.20742958,96476.0,96475.0,0.3628]
[1738971923902,0.20742958,96476.0,96475.0,0.002]
[1738971928093,0.2073111,96459.0,96458.0,0.3608]
[1738971928288,0.2073154,96457.0,96447.0,0.0772]
[1738971928493,0.2073154,96457.0,96447.0,0.44621277]
[1738971930995,0.2083154,96457.0,96447.0,0.44621277]
[1738971931903,0.22137113,96457.0,96447.0,0.0772]
[1738971937709,0.01405573,96457.0,96446.0,0.00155524]
[1738971937900,0.2073369,96447.0,96446.0,0.00155524]
[1738971938100,0.2822169,96447.0,96446.0,0.00155524]
[1738971938502,0.2073604,96437.0,96429.0,0.2073744]
[1738971938903,0.2073625,96436.0,96429.0,0.2073744]
[1738971939121,0.207367,96433.0,96426.0,0.01309648]
[1738971939408,0.207367,96433.0,96427.0,0.2073793]
[1738971940309,0.207367,96433.0,96425.0,0.00015554]
[1738971940510,0.207367,96433.0,96432.0,0.3668]
[1738971940913,0.207367,96433.0,96432.0,0.3608]
[1738971941103,0.207367,96433.0,96432.0,0.3668]
[1738971941615,0.207367,96433.0,96432.0,0.3758]
[1738971943311,0.282247,96433.0,96432.0,0.3758]
[1738971948513,0.282247,96433.0,96432.0,0.015]
[1738971966718,0.09479052,96442.0,96440.0,0.207331]
[1738971966920,0.00015554,96444.0,96443.0,0.2073246]
[1738971968922,0.00015554,96444.0,96443.0,0.2113246]
[1738971969724,0.00015554,96444.0,96443.0,0.2133246]
[1738971973833,0.00015554,96444.0,96443.0,0.22616969]
[1738971975619,0.00015554,96444.0,96443.0,0.2133246]
[1738971986842,0.00015554,96444.0,96443.0,0.9349246]
[1738972000038,0.00015554,96444.0,96443.0,1.25401961]
[1738972002235,0.00015554,96444.0,96443.0,1.29807658]
[1738972005646,0.00015554,96444.0,96443.0,1.25401961]
[1738972006249,0.00015554,96444.0,96443.0,1.29808912]
[1738972007142,0.00015554,96444.0,96443.0,1.25401961]
[1738972007542,0.00015554,96444.0,96443.0,1.30414709]
[1738972011047,0.00015554,96444.0,96443.0,0.9349246]
[1738972016556,0.00015554,96444.0,96443.0,0.97901426]
[1738972019463,0.08134216,96460.0,96458.0,0.2072921]
[1738972019661,0.2072573,96475.0,96470.0,0.2072666]
[1738972019863,0.2072573,96475.0,96471.0,0.3608]
[1738972020869,0.08289742,96480.0,96475.0,0.2072553]
[1738972021061,0.00155526,96480.0,96475.0,0.2072553]
[1738972022267,0.01283724,96481.0,96475.0,0.2082553]
[1738972023259,0.001,96479.0,96475.0,0.2092553]
[1738972023662,0.001,96479.0,96475.0,0.002]
[1738972023959,0.01283724,96481.0,96476.0,0.2072527]
[1738972024163,0.01383724,96481.0,96476.0,0.2072527]
[1738972025260,0.01383724,96481.0,96480.0,0.3608]
[1738972026576,0.01283724,96481.0,96480.0,0.3608]
[1738972026955,0.00015518,96481.0,96480.0,0.3608]
[1738972027356,0.00115518,96481.0,96480.0,0.3618]
[1738972027660,0.00115518,96481.0,96480.0,0.3628]
[1738972037974,0.00115518,96481.0,96480.0,0.7236]
[1738972054191,0.00115518,96481.0,96480.0,0.9308451]
[1738972062598,0.08134216,96490.0,96489.0,0.2072258]
[1738972062799,0.001,96481.0,96480.0,0.65230726]
[1738972063002,0.001,96481.0,96480.0,0.9308451]
[1738972063299,0.001,96481.0,96480.0,0.97487577]
[1738972063500,0.001,96481.0,96480.0,0.9308451]
[1738972063692,0.001,96481.0,96480.0,0.9298451]
[1738972064290,0.08134216,96490.0,96480.0,0.7236]
[1738972064492,0.08134216,96490.0,96489.0,0.5680258]
[1738972064690,0.2072089,96497.0,96489.0,0.5680258]
[1738972064887,0.2072089,96497.0,96490.0,0.3608]
[1738972066099,0.21907914,96497.0,96490.0,0.3608]
[1738972066799,0.21907914,96497.0,96490.0,0.3618]
[1738972066999,0.26268432,96500.0,96490.0,0.3618]
[1738972067000,0.18134216,96500.0,96490.0,0.3618]
[1738972067197,0.18134216,96500.0,96499.0,0.3608]
[1738972067495,0.1,96500.0,96499.0,0.3608]
[1738972068291,0.1,96500.0,96499.0,0.5680043]
[1738972069101,0.1,96500.0,96499.0,0.5690043]
[1738972069294,0.1,96500.0,96499.0,0.5700043]
[1738972074211,0.1,96500.0,96499.0,0.58613865]
[1738972075204,0.1,96500.0,96499.0,0.58596379]
[1738972075610,0.1,96500.0,96499.0,0.5700043]
[1738972076000,0.1,96500.0,96499.0,0.58596216]
[1738972079308,0.1,96500.0,96499.0,0.5700043]
[1738972079603,0.1,96500.0,96499.0,0.58582774]
[1738972080207,0.1,96500.0,96499.0,0.5700043]
[1738972081311,0.1,96500.0,96499.0,0.58585777]
[1738972082303,0.1,96500.0,96499.0,0.5700043]
[1738972085206,0.1,96500.0,96499.0,0.58582301]
[1738972087010,0.1,96500.0,96499.0,0.58482301]
[1738972088222,0.1,96500.0,96499.0,0.58502912]
[1738972088408,0.1,96500.0,96499.0,0.58402912]
[1738972090317,0.1,96500.0,96499.0,0.60993373]
[1738972092415,0.1,96500.0,96499.0,1.27132335]
[1738972095821,0.1,96500.0,96499.0,0.90270762]
[1738972098317,0.1,96500.0,96499.0,0.87680301]
[1738972099030,0.1,96500.0,96499.0,1.24124248]
[1738972099430,0.1,96500.0,96499.0,1.26714652]
[1738972100329,0.1,96500.0,96499.0,1.24124246]
[1738972103532,0.1,96500.0,96499.0,1.26714633]
[1738972104428,0.1,96500.0,96499.0,1.26714622]
[1738972105330,0.1,96500.0,96499.0,1.24124224]
[1738972106330,0.1,96500.0,96499.0,1.22505226]
[1738972113226,0.1,96500.0,96499.0,1.26906537]
[1738972113840,0.1,96500.0,96499.0,1.22505226]
[1738972114039,0.1,96500.0,96499.0,1.2690638]
[1738972114339,0.1,96500.0,96499.0,1.22505226]
[1738972114532,0.1,96500.0,96499.0,1.26906612]
[1738972114939,0.1,96500.0,96499.0,1.62986612]
[1738972118336,0.1,96500.0,96499.0,1.58585226]
[1738972118840,0.1,96500.0,96499.0,1.6298561]
[1738972119036,0.1,96500.0,96499.0,1.58585226]
[1738972119431,0.1,96500.0,96499.0,1.62985857]
[1738972119632,0.00155478,96508.0,96507.0,0.2071871]
[1738972119834,0.00155478,96508.0,96507.0,0.5679871]
[1738972120745,0.00155478,96508.0,96507.0,0.5689871]
[1738972121137,0.00155478,96508.0,96507.0,0.5699871]
[1738972122040,0.01183103,96515.0,96507.0,0.3628]
[1738972122236,0.16268432,96520.0,96513.0,0.3608]
[1738972122838,0.16268432,96520.0,96514.0,0.0128936]
[1738972123044,0.16268432,96520.0,96515.0,0.0128936]
[1738972123245,0.2071516,96524.0,96516.0,0.0128936]
[1738972123440,0.2071516,96524.0,96517.0,0.0128936]
[1738972123640,0.2071516,96524.0,96518.0,0.0128936]
[1738972123832,0.2071516,96524.0,96519.0,0.0128936]
[1738972124037,0.2071516,96524.0,96520.0,0.0128936]
[1738972124845,0.12958921,96521.0,96517.0,0.002]
[1738972126242,0.12958921,96521.0,96520.0,0.001]
[1738972126840,0.12958921,96521.0,96517.0,0.001]
[1738972126841,0.12958921,96521.0,96517.0,0.002]
[1738972127047,0.12958921,96521.0,96519.0,0.3069543]
[1738972127237,0.12958921,96521.0,96520.0,0.001]
[1738972127442,0.12958921,96521.0,96520.0,0.002]
[1738972127944,0.12958921,96521.0,96520.0,0.001]
[1738972128245,0.12958921,96521.0,96519.0,0.3069543]
[1738972128946,0.12958921,96521.0,96520.0,0.001]
[1738972130140,0.12958921,96521.0,96520.0,0.002]
[1738972130851,0.12958921,96521.0,96520.0,0.3618]
[1738972131651,0.12958921,96521.0,96520.0,0.3628]
[1738972138348,0.12958921,96521.0,96520.0,0.3618]
[1738972139746,0.12958921,96521.0,96520.0,0.001]
[1738972139951,0.12958921,96521.0,96520.0,0.3618]
[1738972141753,0.12958921,96521.0,96520.0,0.001]
[1738972141955,0.12958921,96521.0,96520.0,0.3618]
[1738972142851,0.33674631,96521.0,96520.0,0.3618]
[1738972145155,0.21894631,96521.0,96520.0,0.3618]
[1738972147149,0.01178921,96521.0,96520.0,0.3618]
[1738972147351,0.07604,96525.0,96520.0,0.06406456]
[1738972147655,0.2071721,96514.0,96505.0,0.36834517]
[1738972147959,0.11794216,96513.0,96505.0,0.36834517]
[1738972148150,0.32511746,96513.0,96505.0,0.36834517]
[1738972148350,0.2071893,96506.0,96505.0,0.36834517]
[1738972150459,0.2071893,96506.0,96505.0,0.03081795]
[1738972151060,0.2081893,96506.0,96505.0,0.03081795]
[1738972151766,0.2072043,96499.0,96498.0,0.00015545]
[1738972152263,0.2072408,96482.0,96477.0,0.43131979]
[1738972153761,0.21913351,96482.0,96477.0,0.43131979]
[1738972153956,0.21913351,96482.0,96477.0,0.79211979]
[1738972153957,0.01189271,96482.0,96477.0,0.79211979]
[1738972154165,0.2072484,96479.0,96477.0,0.79119979]
[1738972155165,0.2072484,96479.0,96477.0,0.79919979]
[1738972155561,0.2072484,96479.0,96477.0,0.80819979]
[1738972156656,0.16268432,96487.0,96477.0,0.62342671]
[1738972156857,0.2072494,96478.0,96477.0,0.62342671]
[1738972157765,0.2072494,96478.0,96477.0,0.61542671]
[1738972157957,0.2072494,96478.0,96477.0,0.62342671]
[1738972159151,0.2072386,96484.0,96477.0,0.62342671]
[1738972160062,0.2072386,96484.0,96477.0,0.3778]
[1738972160265,0.2072389,96483.0,96477.0,0.3778]
[1738972160475,0.2072389,96483.0,96477.0,0.3698]
[1738972160766,0.2072389,96483.0,96477.0,0.3778]
[1738972162770,0.17457835,96487.0,96477.0,0.3778]
[1738972163062,0.207242,96482.0,96477.0,0.3778]
[1738972163265,0.2072322,96486.0,96477.0,0.3778]
[1738972163465,0.17457835,96487.0,96477.0,0.3778]
[1738972163667,0.2072494,96478.0,96477.0,0.017]
[1738972164767,0.2072494,96478.0,96477.0,0.008]
[1738972164969,0.2072494,96478.0,96477.0,0.017]
[1738972182474,0.2072601,96473.0,96472.0,0.00015545]
[1738972183876,0.2072601,96473.0,96472.0,0.00915545]
[1738972184671,0.2072601,96473.0,96472.0,0.01815545]
[1738972187577,0.21866769,96473.0,96472.0,0.01815545]
[1738972194679,0.2072882,96460.0,96455.0,0.3608]
[1738972195783,0.2072882,96460.0,96455.0,0.3698]
[1738972195982,0.2082882,96460.0,96455.0,0.3698]
[1738972196185,0.2092882,96460.0,96455.0,0.3788]
[1738972199979,0.207292,96459.0,96455.0,0.3788]
[1738972201271,0.208292,96459.0,96455.0,0.3788]
[1738972201483,0.209292,96459.0,96455.0,0.3718]
[1738972202787,0.2072966,96456.0,96455.0,0.3628]
[1738972202987,0.2072966,96456.0,96455.0,0.3698]
[1738972203185,0.2072966,96456.0,96455.0,0.3778]
[1738972203486,0.2072966,96456.0,96455.0,0.017]
[1738972204179,0.2082966,96456.0,96455.0,0.017]
[1738972204691,0.2092966,96456.0,96455.0,0.017]
[1738972206787,0.2092966,96456.0,96448.0,0.03545545]
[1738972207478,0.2073001,96455.0,96448.0,0.03545545]
[1738972207880,0.2073001,96455.0,96448.0,0.04445545]
[1738972208186,0.2073001,96455.0,96448.0,0.05345545]
[1738972208778,0.2073017,96454.0,96448.0,0.05345545]
[1738972209582,0.001,96455.0,96448.0,0.05345545]
[1738972209882,0.207306,96452.0,96448.0,0.05345545]
[1738972210394,0.207306,96452.0,96448.0,0.04445545]
[1738972210688,0.2073079,96451.0,96448.0,0.04445545]
[1738972210889,0.2073079,96451.0,96448.0,0.03745545]
[1738972211280,0.2073117,96449.0,96448.0,0.03745545]
[1738972213896,0.2083117,96449.0,96448.0,0.03745545]
[1738972214577,0.2083117,96449.0,96448.0,0.03545545]
[1738972214781,0.2093117,96449.0,96448.0,0.03745545]
[1738972216085,0.22104106,96449.0,96448.0,0.03745545]
[1738972223390,0.22104106,96449.0,96448.0,0.00215545]
[1738972223997,0.2073375,96437.0,96435.0,0.30887345]
[1738972225491,0.2083375,96437.0,96435.0,0.30987345]
[1738972227104,0.2093375,96437.0,96435.0,0.30987345]
[1738972227401,0.2093375,96437.0,96435.0,0.00255504]
[1738972228895,0.22058091,96437.0,96435.0,0.00255504]
[1738972234906,0.2073589,96427.0,96426.0,0.00015553]
[1738972236602,0.2073762,96419.0,96418.0,0.30731841]
[1738972236808,0.2824962,96419.0,96418.0,0.30731841]
[1738972237297,0.2824962,96419.0,96418.0,0.26654263]
[1738972237506,0.2824962,96419.0,96418.0,0.22578472]
[1738972237799,0.6442962,96419.0,96418.0,0.11441979]
[1738972238002,0.6442962,96419.0,96405.0,0.3608]
[1738972238003,0.2073955,96410.0,96407.0,0.30719881]
[1738972238309,0.2073998,96408.0,96407.0,0.18315891]
[1738972239398,0.2073998,96408.0,96407.0,0.16229191]
[1738972240302,0.2083998,96408.0,96407.0,0.12846691]
[1738972240503,0.2083998,96408.0,96407.0,0.06899105]
[1738972241005,0.2093998,96408.0,96407.0,0.06899105]
[1738972243208,0.2093998,96408.0,96400.0,0.1]
[1738972243209,0.2074149,96401.0,96400.0,0.1]
[1738972243405,0.2822149,96401.0,96400.0,0.1]
[1738972244307,0.2832149,96401.0,96400.0,0.1]
[1738972244510,0.2842149,96401.0,96400.0,0.1]
[1738972246304,0.2832149,96401.0,96400.0,0.1]
[1738972246508,0.2842149,96401.0,96400.0,0.1]
[1738972246907,0.2832149,96401.0,96400.0,0.1]
[1738972247412,0.29438249,96401.0,96400.0,0.1]
[1738972259215,0.29438249,96401.0,96400.0,0.06381729]
[1738972259601,0.29438249,96401.0,96400.0,0.02853588]
[1738972270324,0.2074191,96399.0,96398.0,0.00015553]
[1738972280643,0.2074385,96390.0,96389.0,0.3608]
[1738972281844,0.3608,96393.0,96387.0,0.0361]
[1738972282047,0.2074428,96388.0,96387.0,0.0361]
[1738972284049,0.2084428,96388.0,96387.0,0.0361]
[1738972284347,0.2094428,96388.0,96387.0,0.0361]
[1738972289944,0.22051321,96388.0,96387.0,0.0361]
[1738972293247,0.22251321,96388.0,96387.0,0.0361]
[1738972293447,0.22151321,96388.0,96387.0,0.0361]
[1738972293650,0.29731321,96388.0,96387.0,0.0361]
[1738972294361,0.29831321,96388.0,96387.0,0.0361]
[1738972297754,0.2074708,96375.0,96361.0,0.57792]
[1738972297944,0.5682708,96375.0,96364.0,0.1039]
[1738972299859,0.5692708,96375.0,96364.0,0.1039]
[1738972301859,0.3618,96375.0,96364.0,0.1039]
[1738972302046,0.5682923,96365.0,96364.0,0.1039]
[1738972302249,0.6430923,96365.0,96364.0,0.1039]
[1738972302855,0.6430923,96365.0,96344.0,0.00155681]
[1738972302856,0.2075125,96356.0,96344.0,0.00155681]
[1738972303158,0.08134216,96354.0,96345.0,0.1075]
[1738972304353,0.08234216,96354.0,96345.0,0.1075]
[1738972305559,0.29085896,96354.0,96345.0,0.1075]
[1738972306150,0.2075208,96352.0,96345.0,0.1075]
[1738972307356,0.002,96352.0,96345.0,0.1075]
[1738972307563,0.207532,96347.0,96345.0,0.1075]
[1738972308858,0.208532,96347.0,96345.0,0.1075]
[1738972310063,0.209532,96347.0,96345.0,0.1075]
[1738972313166,0.002,96347.0,96345.0,0.1075]
[1738972313366,0.08134216,96370.0,96346.0,0.3608]
[1738972313668,0.15527702,96377.0,96372.0,0.2074752]
[1738972313861,0.15527702,96377.0,96373.0,0.1088]
[1738972315860,0.18581048,96384.0,96373.0,0.325]
[1738972316164,0.21567688,96398.0,96396.0,0.2074249]
[1738972316363,0.21567688,96398.0,96397.0,0.1049]
[1738972316564,0.154974,96408.0,96399.0,0.207417]
[1738972317466,0.154974,96408.0,96401.0,0.2074147]
[1738972317870,0.154974,96408.0,96403.0,0.207409]
[1738972318569,0.155974,96408.0,96403.0,0.207409]
[1738972318766,0.155974,96408.0,96407.0,0.2074019]
[1738972319167,0.00015562,96413.0,96402.0,0.3608]
[1738972319362,0.00015562,96413.0,96411.0,0.2073921]
[1738972320272,0.00155633,96428.0,96402.0,0.37194885]
[1738972320574,0.00215634,96428.0,96422.0,0.3608]
[1738972320763,0.00215634,96428.0,96423.0,0.1079]
[1738972320764,0.00155633,96428.0,96423.0,0.1079]
[1738972321977,0.00755633,96428.0,96423.0,0.1089]
[1738972322180,0.001,96424.0,96423.0,0.1089]
[1738972322869,0.001,96424.0,96423.0,0.3162674]
[1738972323071,0.00755633,96428.0,96427.0,0.2073588]
[1738972323274,0.01255633,96428.0,96427.0,0.2073588]
[1738972323679,0.00655633,96428.0,96427.0,0.2073588]
[1738972323864,0.00015562,96435.0,96423.0,0.4707]
[1738972324172,0.00015562,96435.0,96434.0,0.3608]
[1738972326673,0.00615562,96435.0,96434.0,0.3608]